[Event "*** Titled Tuesday Blitz"]
[Site "Chess.com"]
[Date "2020.12.01"]
[Round "11"]
[White "1977Ivan"]
[Black "dretch"]
[Result "0-1"]
[WhiteElo "2680"]
[BlackElo "2824"]
[TimeControl "180+1"]
[EndTime "12:05:11 PST"]
[Termination "dretch won by resignation"]

1. d4 {[%clk 0:03:00.9]} 1... d5 {[%clk 0:03:00]} 2. Nf3 {[%clk 0:03:01.2]} 2...
Nf6 {[%clk 0:03:00.2]} 3. e3 {[%clk 0:03:00.6]} 3... c5 {[%clk 0:02:59.9]} 4. c3
{[%clk 0:02:56.9]} 4... e6 {[%clk 0:02:59.8]} 5. Nbd2 {[%clk 0:02:56.1]} 5...
Nbd7 {[%clk 0:02:59.7]} 6. Bd3 {[%clk 0:02:55.5]} 6... Bd6 {[%clk 0:02:59.9]} 7.
O-O {[%clk 0:02:55.5]} 7... O-O {[%clk 0:02:59.5]} 8. e4 {[%clk 0:02:55.2]} 8...
cxd4 {[%clk 0:02:57.2]} 9. cxd4 {[%clk 0:02:56.1]} 9... dxe4 {[%clk 0:02:56.8]}
10. Nxe4 {[%clk 0:02:56.9]} 10... Be7 {[%clk 0:02:51.8]} 11. Re1 {[%clk
0:02:53.8]} 11... b6 {[%clk 0:02:51.8]} 12. Nc3 {[%clk 0:02:19.9]} 12... Bb7
{[%clk 0:02:50.4]} 13. a3 {[%clk 0:02:20.4]} 13... Rc8 {[%clk 0:02:46.4]} 14.
Bg5 {[%clk 0:02:15.3]} 14... Nd5 {[%clk 0:02:43.4]} 15. Bxe7 {[%clk 0:02:05.9]}
15... Nxe7 {[%clk 0:02:43.4]} 16. h4 {[%clk 0:01:37.2]} 16... Nf6 {[%clk
0:02:41.7]} 17. Ne5 {[%clk 0:01:32.3]} 17... Nc6 {[%clk 0:02:40.1]} 18. Nxc6
{[%clk 0:01:17]} 18... Rxc6 {[%clk 0:02:39.8]} 19. Re3 {[%clk 0:01:15]} 19...
Rd6 {[%clk 0:02:37.8]} 20. Ne2 {[%clk 0:01:07.5]} 20... Ng4 {[%clk 0:02:33.2]}
21. Rh3 {[%clk 0:01:05.6]} 21... e5 {[%clk 0:02:26.2]} 22. Qd2 {[%clk
0:00:58.2]} 22... exd4 {[%clk 0:02:13.8]} 23. Qf4 {[%clk 0:00:55.8]} 23... Nf6
{[%clk 0:02:11.1]} 24. Rd1 {[%clk 0:00:54.3]} 24... Re8 {[%clk 0:02:10.1]} 25.
Ng3 {[%clk 0:00:52.6]} 25... Rde6 {[%clk 0:02:05.4]} 26. Nf5 {[%clk 0:00:47.9]}
26... Re1+ {[%clk 0:02:04.8]} 27. Rxe1 {[%clk 0:00:47.6]} 27... Rxe1+ {[%clk
0:02:05.3]} 28. Kh2 {[%clk 0:00:48.2]} 28... h5 {[%clk 0:02:05.1]} 29. f3 {[%clk
0:00:44.1]} 29... g6 {[%clk 0:01:53.5]} 30. Rg3 {[%clk 0:00:38.2]} 30... Bd5
{[%clk 0:01:43.4]} 31. Qxd4 {[%clk 0:00:35.3]} 31... Kh7 {[%clk 0:01:21.1]} 32.
Ne3 {[%clk 0:00:29.4]} 32... Qd6 {[%clk 0:01:08.2]} 33. Nxd5 {[%clk 0:00:24]}
33... Nxd5 {[%clk 0:01:03.7]} 34. Be4 {[%clk 0:00:21.4]} 34... Qf4 {[%clk
0:00:59.4]} 35. Qxd5 {[%clk 0:00:12.2]} 35... Qxh4+ {[%clk 0:00:58]} 36. Rh3
{[%clk 0:00:12.2]} 36... Qf4+ {[%clk 0:00:49.3]} 37. Rg3 {[%clk 0:00:09]} 37...
h4 {[%clk 0:00:46.4]} 38. Qh5+ {[%clk 0:00:06.9]} 38... Kg7 {[%clk 0:00:44.5]}
0-1

[Event "*** Titled Tuesday Blitz"]
[Site "Chess.com"]
[Date "2020.12.01"]
[Round "11"]
[White "Dreamer_01"]
[Black "Zq1"]
[Result "1-0"]
[WhiteElo "2378"]
[BlackElo "2537"]
[TimeControl "180+1"]
[EndTime "12:05:11 PST"]
[Termination "Dreamer_01 won by resignation"]

1. d4 {[%clk 0:02:58.1]} 1... Nf6 {[%clk 0:02:59.2]} 2. g3 {[%clk 0:02:51.8]}
2... c5 {[%clk 0:02:58.1]} 3. d5 {[%clk 0:02:50.3]} 3... e6 {[%clk 0:02:57.6]}
4. c4 {[%clk 0:02:46.5]} 4... exd5 {[%clk 0:02:57]} 5. cxd5 {[%clk 0:02:46.7]}
5... b5 {[%clk 0:02:57]} 6. Bg2 {[%clk 0:02:45.2]} 6... d6 {[%clk 0:02:56.6]} 7.
e4 {[%clk 0:02:44.7]} 7... Bb7 {[%clk 0:02:53.5]} 8. Ne2 {[%clk 0:02:42.4]} 8...
Nbd7 {[%clk 0:02:48.7]} 9. a4 {[%clk 0:02:42.1]} 9... b4 {[%clk 0:02:48.1]} 10.
b3 {[%clk 0:02:39.8]} 10... Be7 {[%clk 0:02:47.5]} 11. O-O {[%clk 0:02:38.6]}
11... O-O {[%clk 0:02:47.5]} 12. Nd2 {[%clk 0:02:38]} 12... a5 {[%clk
0:02:36.7]} 13. Bb2 {[%clk 0:02:34.7]} 13... Ba6 {[%clk 0:02:36.7]} 14. Rc1
{[%clk 0:02:32.9]} 14... Ng4 {[%clk 0:02:34.6]} 15. Nc4 {[%clk 0:02:26.8]} 15...
Bxc4 {[%clk 0:02:32.5]} 16. Rxc4 {[%clk 0:02:26.1]} 16... Bf6 {[%clk 0:02:32.6]}
17. Rc2 {[%clk 0:02:20.1]} 17... Bxb2 {[%clk 0:02:31.6]} 18. Rxb2 {[%clk
0:02:20.4]} 18... Qf6 {[%clk 0:02:30.9]} 19. Rc2 {[%clk 0:02:20.3]} 19... Rac8
{[%clk 0:02:21.5]} 20. h3 {[%clk 0:02:13]} 20... Nge5 {[%clk 0:02:20.3]} 21. f4
{[%clk 0:02:13]} 21... Ng6 {[%clk 0:02:18.9]} 22. h4 {[%clk 0:02:13]} 22... Rfe8
{[%clk 0:02:13.2]} 23. Qd3 {[%clk 0:02:08.6]} 23... c4 {[%clk 0:01:55.5]} 24.
Rxc4 {[%clk 0:02:05.5]} 24... Rxc4 {[%clk 0:01:54.5]} 25. Qxc4 {[%clk
0:02:04.8]} 25... Nc5 {[%clk 0:01:54.5]} 26. e5 {[%clk 0:02:00.5]} 26... Qe7
{[%clk 0:01:52.3]} 27. Nd4 {[%clk 0:01:49.8]} 27... dxe5 {[%clk 0:01:45.3]} 28.
Nf5 {[%clk 0:01:43.2]} 28... Qa7 {[%clk 0:01:44.3]} 29. Kh1 {[%clk 0:01:24.6]}
29... exf4 {[%clk 0:01:38.6]} 30. d6 {[%clk 0:01:23.7]} 30... Ne5 {[%clk
0:01:26.1]} 31. Qd4 {[%clk 0:01:09.7]} 31... f3 {[%clk 0:01:01.7]} 32. Bxf3
{[%clk 0:01:04.4]} 32... Qb6 {[%clk 0:01:01.1]} 33. Ne7+ {[%clk 0:00:58.5]}
33... Kf8 {[%clk 0:00:56.5]} 34. Qxe5 {[%clk 0:00:56.7]} 34... Nd3 {[%clk
0:00:56.5]} 35. Qf5 {[%clk 0:00:43.8]} 35... Qxd6 {[%clk 0:00:54]} 36. Bc6
{[%clk 0:00:34.2]} 1-0

[Event "*** Titled Tuesday Blitz"]
[Site "Chess.com"]
[Date "2020.12.01"]
[Round "11"]
[White "scarabee43"]
[Black "AniJak"]
[Result "1-0"]
[WhiteElo "2560"]
[BlackElo "2389"]
[TimeControl "180+1"]
[EndTime "12:05:12 PST"]
[Termination "scarabee43 won by resignation"]

1. Nf3 {[%clk 0:03:00.9]} 1... d5 {[%clk 0:02:59.2]} 2. e3 {[%clk 0:03:00.8]}
2... Nf6 {[%clk 0:02:59.1]} 3. c4 {[%clk 0:03:01.3]} 3... c6 {[%clk 0:02:58.3]}
4. Nc3 {[%clk 0:03:01.1]} 4... e6 {[%clk 0:02:52.8]} 5. b3 {[%clk 0:02:57.4]}
5... Nbd7 {[%clk 0:02:52.7]} 6. Bb2 {[%clk 0:02:57.1]} 6... Bd6 {[%clk
0:02:52.7]} 7. Be2 {[%clk 0:02:55.7]} 7... O-O {[%clk 0:02:52.4]} 8. O-O {[%clk
0:02:55.3]} 8... e5 {[%clk 0:02:50.4]} 9. cxd5 {[%clk 0:02:54.9]} 9... cxd5
{[%clk 0:02:50.3]} 10. Nb5 {[%clk 0:02:55.2]} 10... Bb8 {[%clk 0:02:47]} 11. Ba3
{[%clk 0:02:54.5]} 11... Re8 {[%clk 0:02:46.4]} 12. Nd6 {[%clk 0:02:53.8]} 12...
Bxd6 {[%clk 0:02:46]} 13. Bxd6 {[%clk 0:02:54.5]} 13... b6 {[%clk 0:02:28.4]}
14. Rc1 {[%clk 0:02:43]} 14... e4 {[%clk 0:02:19.2]} 15. Nd4 {[%clk 0:02:35.8]}
15... Bb7 {[%clk 0:02:18.6]} 16. Rc7 {[%clk 0:02:17.8]} 16... Nc5 {[%clk
0:02:15.4]} 17. Bg3 {[%clk 0:02:16.9]} 17... Rc8 {[%clk 0:01:49.9]} 18. Rxc8
{[%clk 0:02:00.8]} 18... Qxc8 {[%clk 0:01:50.8]} 19. Nb5 {[%clk 0:02:00.3]}
19... Qa8 {[%clk 0:01:40.1]} 20. Nc7 {[%clk 0:01:59.8]} 20... Qd8 {[%clk
0:01:38.1]} 21. Nxe8 {[%clk 0:01:58.6]} 21... Nxe8 {[%clk 0:01:39]} 22. Qc2
{[%clk 0:01:56.3]} 22... h6 {[%clk 0:01:31.6]} 23. d4 {[%clk 0:01:48.9]} 23...
exd3 {[%clk 0:01:28.9]} 24. Bxd3 {[%clk 0:01:49.2]} 24... d4 {[%clk 0:01:20.6]}
25. Rd1 {[%clk 0:01:47.2]} 25... Qd5 {[%clk 0:01:11]} 26. Bf1 {[%clk 0:01:29.6]}
26... d3 {[%clk 0:01:06.3]} 27. Qc3 {[%clk 0:01:30]} 27... Nf6 {[%clk
0:01:01.5]} 28. Qd4 {[%clk 0:01:11.6]} 28... Qh5 {[%clk 0:00:37.5]} 29. Qd8+
{[%clk 0:01:10.7]} 29... Kh7 {[%clk 0:00:35.5]} 30. Bxd3+ {[%clk 0:01:11.2]}
30... Nxd3 {[%clk 0:00:35.5]} 31. Qxd3+ {[%clk 0:01:10]} 31... Be4 {[%clk
0:00:34.6]} 32. Qd4 {[%clk 0:01:09.4]} 32... Qg5 {[%clk 0:00:21.9]} 33. f3
{[%clk 0:01:05.9]} 33... Bg6 {[%clk 0:00:18.5]} 34. Bh4 {[%clk 0:01:05.5]} 34...
Qf5 {[%clk 0:00:15.8]} 35. Bxf6 {[%clk 0:01:04.9]} 35... gxf6 {[%clk 0:00:16.4]}
36. e4 {[%clk 0:00:53.7]} 36... Qa5 {[%clk 0:00:15.3]} 37. Qxf6 {[%clk 0:00:51]}
37... Qxa2 {[%clk 0:00:14.9]} 38. Rd8 {[%clk 0:00:48.3]} 38... Qb2 {[%clk
0:00:09.1]} 39. Qxb2 {[%clk 0:00:47.2]} 1-0

[Event "*** Titled Tuesday Blitz"]
[Site "Chess.com"]
[Date "2020.12.01"]
[Round "11"]
[White "FrostNova"]
[Black "GukeshDommaraju"]
[Result "1-0"]
[WhiteElo "3026"]
[BlackElo "2903"]
[TimeControl "180+1"]
[EndTime "12:05:17 PST"]
[Termination "FrostNova won by checkmate"]

1. e4 {[%clk 0:03:00.9]} 1... c6 {[%clk 0:02:58.5]} 2. Nf3 {[%clk 0:02:56.7]}
2... d5 {[%clk 0:02:58.6]} 3. d3 {[%clk 0:02:57.6]} 3... dxe4 {[%clk 0:02:54.9]}
4. dxe4 {[%clk 0:02:58.5]} 4... Qxd1+ {[%clk 0:02:54.9]} 5. Kxd1 {[%clk
0:02:59.4]} 5... Nf6 {[%clk 0:02:54.9]} 6. Nfd2 {[%clk 0:02:59.3]} 6... g5
{[%clk 0:02:55]} 7. a4 {[%clk 0:02:56.1]} 7... g4 {[%clk 0:02:51.7]} 8. a5
{[%clk 0:02:56.3]} 8... Be6 {[%clk 0:02:47.4]} 9. Na3 {[%clk 0:02:52.6]} 9...
Nbd7 {[%clk 0:02:46.8]} 10. Bc4 {[%clk 0:02:52.8]} 10... Nc5 {[%clk 0:02:40]}
11. Bxe6 {[%clk 0:02:50.6]} 11... Nxe6 {[%clk 0:02:37.9]} 12. Nac4 {[%clk
0:02:50.4]} 12... O-O-O {[%clk 0:02:35.2]} 13. Re1 {[%clk 0:02:49]} 13... Bh6
{[%clk 0:02:31.7]} 14. Ra3 {[%clk 0:02:44.2]} 14... Nc5 {[%clk 0:02:20.8]} 15.
f3 {[%clk 0:02:35]} 15... gxf3 {[%clk 0:02:15.8]} 16. gxf3 {[%clk 0:02:35.9]}
16... Rhg8 {[%clk 0:02:06.8]} 17. b4 {[%clk 0:02:35.3]} 17... Na6 {[%clk
0:01:56.3]} 18. Ne5 {[%clk 0:02:04.7]} 18... Rg2 {[%clk 0:01:39.5]} 19. Rd3
{[%clk 0:02:04.5]} 19... Rxd3 {[%clk 0:01:37.5]} 20. Nxd3 {[%clk 0:02:05.4]}
20... Rxh2 {[%clk 0:01:34.2]} 21. Rg1 {[%clk 0:02:02.5]} 21... Kd7 {[%clk
0:01:23.6]} 22. Nf1 {[%clk 0:01:56.2]} 22... Rh3 {[%clk 0:01:21.6]} 23. Bb2
{[%clk 0:01:39.4]} 23... Nh5 {[%clk 0:01:06.1]} 24. Rg8 {[%clk 0:01:30.3]} 24...
Nf4 {[%clk 0:00:58.6]} 25. Ne5+ {[%clk 0:00:53.2]} 25... Ke6 {[%clk 0:00:58.5]}
26. Ng4 {[%clk 0:00:54.1]} 26... Rxf3 {[%clk 0:00:50.4]} 27. Nfe3 {[%clk
0:00:52.3]} 27... Rh3 {[%clk 0:00:41.1]} 28. Nf5 {[%clk 0:00:50.9]} 28... Rh1+
{[%clk 0:00:36]} 29. Kd2 {[%clk 0:00:51.1]} 29... Nxb4 {[%clk 0:00:27.9]} 30.
Nfxh6 {[%clk 0:00:47.4]} 30... Rg1 {[%clk 0:00:27.8]} 31. Nf5 {[%clk 0:00:45.1]}
31... Rg2+ {[%clk 0:00:24.7]} 32. Ke3 {[%clk 0:00:45.3]} 32... Ng6 {[%clk
0:00:18.4]} 33. Rd8 {[%clk 0:00:44.3]} 33... Nxc2+ {[%clk 0:00:18.1]} 34. Kd3
{[%clk 0:00:41.4]} 34... Ne1+ {[%clk 0:00:18.2]} 35. Kc4 {[%clk 0:00:40.7]}
35... f6 {[%clk 0:00:11.9]} 36. Nd4+ {[%clk 0:00:40.9]} 36... Kf7 {[%clk
0:00:12.2]} 37. Nh6+ {[%clk 0:00:41.8]} 37... Kg7 {[%clk 0:00:09.3]} 38. Ndf5#
{[%clk 0:00:42.7]} 1-0

[Event "*** Titled Tuesday Blitz"]
[Site "Chess.com"]
[Date "2020.12.01"]
[Round "11"]
[White "TheCairnTerrier"]
[Black "TheKingDoctor"]
[Result "1-0"]
[WhiteElo "2150"]
[BlackElo "2052"]
[TimeControl "180+1"]
[EndTime "12:05:22 PST"]
[Termination "TheCairnTerrier won on time"]

1. e4 {[%clk 0:03:00.9]} 1... c5 {[%clk 0:02:59.6]} 2. Nf3 {[%clk 0:03:00.8]}
2... g6 {[%clk 0:03:00.1]} 3. g3 {[%clk 0:02:59.3]} 3... Bg7 {[%clk 0:02:59.8]}
4. Bg2 {[%clk 0:02:59.8]} 4... Nc6 {[%clk 0:03:00.4]} 5. O-O {[%clk 0:03:00.1]}
5... d6 {[%clk 0:02:59.9]} 6. c3 {[%clk 0:02:59.2]} 6... e5 {[%clk 0:03:00.3]}
7. a4 {[%clk 0:02:56.9]} 7... Nge7 {[%clk 0:02:58.7]} 8. Na3 {[%clk 0:02:55.2]}
8... O-O {[%clk 0:02:58.5]} 9. Nc4 {[%clk 0:02:54.4]} 9... a6 {[%clk 0:02:57.6]}
10. d3 {[%clk 0:02:26.6]} 10... Rb8 {[%clk 0:02:52.5]} 11. Nh4 {[%clk
0:01:46.7]} 11... b5 {[%clk 0:02:47.7]} 12. axb5 {[%clk 0:01:47.6]} 12... axb5
{[%clk 0:02:48.5]} 13. Ne3 {[%clk 0:01:48.2]} 13... b4 {[%clk 0:02:36.4]} 14.
Bd2 {[%clk 0:01:34]} 14... bxc3 {[%clk 0:02:28.7]} 15. bxc3 {[%clk 0:01:33.5]}
15... Be6 {[%clk 0:02:15.7]} 16. f4 {[%clk 0:01:32.5]} 16... exf4 {[%clk
0:01:58.6]} 17. gxf4 {[%clk 0:01:32.1]} 17... Bd7 {[%clk 0:01:44.5]} 18. f5
{[%clk 0:01:27.5]} 18... Nxf5 {[%clk 0:00:53.1]} 19. Nhxf5 {[%clk 0:01:25.7]}
19... gxf5 {[%clk 0:00:51.2]} 20. Nxf5 {[%clk 0:01:26.2]} 20... Bxf5 {[%clk
0:00:50.6]} 21. Rxf5 {[%clk 0:01:26.5]} 21... Ne5 {[%clk 0:00:51.1]} 22. Bg5
{[%clk 0:00:59.9]} 22... Qc7 {[%clk 0:00:40]} 23. Bf6 {[%clk 0:00:53.4]} 23...
Ng6 {[%clk 0:00:20.1]} 24. Qg4 {[%clk 0:00:25.5]} 24... Rb2 {[%clk 0:00:12.7]}
25. h4 {[%clk 0:00:24.5]} 25... Qb6 {[%clk 0:00:03.8]} 26. h5 {[%clk 0:00:22.6]}
26... Rb1+ {[%clk 0:00:04]} 27. Kh2 {[%clk 0:00:21.1]} 27... Rxa1 {[%clk
0:00:02.9]} 28. Bxg7 {[%clk 0:00:17.7]} 28... Kxg7 {[%clk 0:00:02.8]} 29. Qg5
{[%clk 0:00:17.6]} 1-0

[Event "*** Titled Tuesday Blitz"]
[Site "Chess.com"]
[Date "2020.12.01"]
[Round "11"]
[White "GMJustin"]
[Black "annacramling"]
[Result "1-0"]
[WhiteElo "2284"]
[BlackElo "2116"]
[TimeControl "180+1"]
[EndTime "12:05:28 PST"]
[Termination "GMJustin won on time"]

1. e4 {[%clk 0:02:58.5]} 1... c5 {[%clk 0:02:58.6]} 2. Nf3 {[%clk 0:02:48.6]}
2... e6 {[%clk 0:02:57.9]} 3. d4 {[%clk 0:02:47.2]} 3... cxd4 {[%clk 0:02:57.5]}
4. Nxd4 {[%clk 0:02:47]} 4... Nf6 {[%clk 0:02:57.4]} 5. Nc3 {[%clk 0:02:46]}
5... Nc6 {[%clk 0:02:55.6]} 6. a3 {[%clk 0:02:37.6]} 6... a6 {[%clk 0:02:53.6]}
7. Nxc6 {[%clk 0:02:33.8]} 7... bxc6 {[%clk 0:02:52.9]} 8. e5 {[%clk 0:02:31.8]}
8... Nd5 {[%clk 0:02:50.9]} 9. Ne4 {[%clk 0:02:30.2]} 9... Qc7 {[%clk
0:02:46.6]} 10. f4 {[%clk 0:02:27.9]} 10... Be7 {[%clk 0:02:33.9]} 11. c4 {[%clk
0:02:22.8]} 11... Nb6 {[%clk 0:02:25.4]} 12. Nd6+ {[%clk 0:02:15.9]} 12... Bxd6
{[%clk 0:02:20.8]} 13. exd6 {[%clk 0:02:16.8]} 13... Qd8 {[%clk 0:02:20.3]} 14.
Qd4 {[%clk 0:02:05.4]} 14... O-O {[%clk 0:02:18.7]} 15. Bd3 {[%clk 0:01:58]}
15... c5 {[%clk 0:02:14.6]} 16. Qxc5 {[%clk 0:01:53.2]} 16... Bb7 {[%clk
0:02:13.4]} 17. O-O {[%clk 0:01:48.4]} 17... Rc8 {[%clk 0:02:11.1]} 18. Qd4
{[%clk 0:01:46.9]} 18... Na4 {[%clk 0:01:49]} 19. b4 {[%clk 0:01:36.5]} 19...
Qb6 {[%clk 0:01:27.1]} 20. Qxb6 {[%clk 0:01:27.2]} 20... Nxb6 {[%clk 0:01:23.7]}
21. c5 {[%clk 0:01:27.5]} 21... Nd5 {[%clk 0:01:22.1]} 22. Bd2 {[%clk
0:01:25.4]} 22... f6 {[%clk 0:00:53.9]} 23. Rfc1 {[%clk 0:01:18.3]} 23... e5
{[%clk 0:00:50.2]} 24. a4 {[%clk 0:01:03.1]} 24... Nxf4 {[%clk 0:00:41.7]} 25.
Bxf4 {[%clk 0:01:01.7]} 25... exf4 {[%clk 0:00:42.6]} 26. b5 {[%clk 0:00:57.8]}
26... axb5 {[%clk 0:00:41.8]} 27. axb5 {[%clk 0:00:57.7]} 27... Rfe8 {[%clk
0:00:39.5]} 28. Ra7 {[%clk 0:00:52.8]} 28... Bd5 {[%clk 0:00:21.5]} 29. Rxd7
{[%clk 0:00:45.1]} 29... Re3 {[%clk 0:00:21.4]} 30. Bf1 {[%clk 0:00:36.8]} 30...
f3 {[%clk 0:00:08.2]} 31. c6 {[%clk 0:00:33.5]} 31... fxg2 {[%clk 0:00:06.8]}
32. Bxg2 {[%clk 0:00:33.1]} 32... Bxg2 {[%clk 0:00:04.9]} 33. Kxg2 {[%clk
0:00:33]} 33... Rb3 {[%clk 0:00:04.1]} 34. c7 {[%clk 0:00:29.8]} 34... Rb2+
{[%clk 0:00:02.5]} 35. Kg1 {[%clk 0:00:29.6]} 1-0

[Event "*** Titled Tuesday Blitz"]
[Site "Chess.com"]
[Date "2020.12.01"]
[Round "11"]
[White "alexsuper1987"]
[Black "SergeyShtyka"]
[Result "0-1"]
[WhiteElo "2327"]
[BlackElo "2452"]
[TimeControl "180+1"]
[EndTime "12:05:30 PST"]
[Termination "SergeyShtyka won by resignation"]

1. d4 {[%clk 0:03:00.9]} 1... c5 {[%clk 0:02:57.6]} 2. e3 {[%clk 0:03:00.1]}
2... e6 {[%clk 0:02:56.5]} 3. Nf3 {[%clk 0:02:58.8]} 3... Nf6 {[%clk 0:02:56.1]}
4. c3 {[%clk 0:02:58.7]} 4... Nc6 {[%clk 0:02:54]} 5. Nbd2 {[%clk 0:02:58.3]}
5... Be7 {[%clk 0:02:52.4]} 6. Bd3 {[%clk 0:02:57.4]} 6... O-O {[%clk
0:02:52.1]} 7. O-O {[%clk 0:02:55.3]} 7... b6 {[%clk 0:02:50.3]} 8. e4 {[%clk
0:02:54.8]} 8... d5 {[%clk 0:02:48.4]} 9. e5 {[%clk 0:02:54.4]} 9... Ne8 {[%clk
0:02:46.3]} 10. a3 {[%clk 0:02:53.5]} 10... f5 {[%clk 0:02:46.2]} 11. exf6
{[%clk 0:02:52.7]} 11... Bxf6 {[%clk 0:02:45.7]} 12. dxc5 {[%clk 0:02:49]} 12...
bxc5 {[%clk 0:02:45.4]} 13. Re1 {[%clk 0:02:48.3]} 13... Nd6 {[%clk 0:02:40.9]}
14. c4 {[%clk 0:02:44.8]} 14... Nf5 {[%clk 0:02:17.9]} 15. Bxf5 {[%clk
0:02:37.1]} 15... exf5 {[%clk 0:02:17.6]} 16. cxd5 {[%clk 0:02:36.7]} 16... Qxd5
{[%clk 0:02:16.5]} 17. Nf1 {[%clk 0:02:20.1]} 17... Qxd1 {[%clk 0:02:04.3]} 18.
Rxd1 {[%clk 0:02:21]} 18... Nd4 {[%clk 0:02:04.6]} 19. Be3 {[%clk 0:02:13.3]}
19... Rd8 {[%clk 0:01:43.7]} 20. Rab1 {[%clk 0:01:45.7]} 20... Bb7 {[%clk
0:01:42.9]} 21. N3d2 {[%clk 0:00:58]} 21... Rac8 {[%clk 0:01:04.8]} 22. Nc4
{[%clk 0:00:54.3]} 22... Be4 {[%clk 0:00:58.2]} 23. Ra1 {[%clk 0:00:47.9]} 23...
Bc2 {[%clk 0:00:49.1]} 24. Bxd4 {[%clk 0:00:15.4]} 24... cxd4 {[%clk 0:00:43.6]}
25. Nfd2 {[%clk 0:00:15.4]} 25... Bxd1 {[%clk 0:00:42.9]} 26. Rxd1 {[%clk
0:00:16.3]} 26... d3 {[%clk 0:00:42.1]} 27. b4 {[%clk 0:00:16.1]} 27... Bg5
{[%clk 0:00:36.5]} 28. g3 {[%clk 0:00:15.1]} 28... Bxd2 {[%clk 0:00:36.5]} 29.
Nxd2 {[%clk 0:00:15.1]} 29... Rc3 {[%clk 0:00:35.7]} 30. a4 {[%clk 0:00:14.1]}
30... Rd4 {[%clk 0:00:33]} 31. f3 {[%clk 0:00:12.9]} 31... Rxb4 {[%clk
0:00:31.9]} 32. Kf2 {[%clk 0:00:13.1]} 32... Rxa4 {[%clk 0:00:31.5]} 33. Ke3
{[%clk 0:00:13.6]} 33... g6 {[%clk 0:00:30.5]} 34. Nb1 {[%clk 0:00:12.8]} 34...
Rb3 {[%clk 0:00:27.2]} 35. Nd2 {[%clk 0:00:13.4]} 35... Rb8 {[%clk 0:00:25.8]}
36. Kxd3 {[%clk 0:00:13.4]} 36... Rd8+ {[%clk 0:00:25.6]} 37. Ke3 {[%clk
0:00:13.8]} 37... Rad4 {[%clk 0:00:25.3]} 0-1

[Event "*** Titled Tuesday Blitz"]
[Site "Chess.com"]
[Date "2020.12.01"]
[Round "11"]
[White "TrenerChos"]
[Black "Fortitudine"]
[Result "1-0"]
[WhiteElo "2212"]
[BlackElo "2338"]
[TimeControl "180+1"]
[EndTime "12:05:36 PST"]
[Termination "TrenerChos won on time"]

1. d4 {[%clk 0:03:00.5]} 1... Nf6 {[%clk 0:02:59.6]} 2. Nf3 {[%clk 0:02:57.5]}
2... c5 {[%clk 0:02:56.6]} 3. g3 {[%clk 0:02:57.9]} 3... g6 {[%clk 0:02:54.1]}
4. Bg2 {[%clk 0:02:56]} 4... cxd4 {[%clk 0:02:52.8]} 5. O-O {[%clk 0:02:56.9]}
5... Bg7 {[%clk 0:02:53.7]} 6. Nxd4 {[%clk 0:02:54.7]} 6... O-O {[%clk
0:02:53.5]} 7. Nb3 {[%clk 0:02:54.1]} 7... d5 {[%clk 0:02:48.7]} 8. Nc3 {[%clk
0:02:50.8]} 8... e6 {[%clk 0:02:44.7]} 9. e4 {[%clk 0:02:49.1]} 9... dxe4 {[%clk
0:02:40.2]} 10. Qxd8 {[%clk 0:02:44.3]} 10... Rxd8 {[%clk 0:02:41.1]} 11. Nxe4
{[%clk 0:02:44.4]} 11... Nxe4 {[%clk 0:02:38.6]} 12. Bxe4 {[%clk 0:02:45.2]}
12... Nc6 {[%clk 0:02:27]} 13. c3 {[%clk 0:02:42]} 13... Ne5 {[%clk 0:01:58.2]}
14. Bf4 {[%clk 0:02:33.7]} 14... Nc4 {[%clk 0:01:55.3]} 15. Rfd1 {[%clk
0:02:30.6]} 15... Re8 {[%clk 0:01:45.9]} 16. Rab1 {[%clk 0:02:16.8]} 16... f5
{[%clk 0:01:31.6]} 17. Bg2 {[%clk 0:02:12.8]} 17... e5 {[%clk 0:01:13.7]} 18.
Bc1 {[%clk 0:02:04]} 18... Rb8 {[%clk 0:01:08.2]} 19. Nc5 {[%clk 0:01:54.7]}
19... Kh8 {[%clk 0:01:01.9]} 20. b3 {[%clk 0:01:50.5]} 20... Na5 {[%clk
0:00:56.8]} 21. Bb2 {[%clk 0:01:44.1]} 21... b6 {[%clk 0:00:53.7]} 22. Nd7
{[%clk 0:01:43.8]} 22... Bxd7 {[%clk 0:00:47.9]} 23. Rxd7 {[%clk 0:01:44.2]}
23... Red8 {[%clk 0:00:36.4]} 24. Rbd1 {[%clk 0:01:41.3]} 24... Bf6 {[%clk
0:00:25]} 25. c4 {[%clk 0:01:35.7]} 25... Rxd7 {[%clk 0:00:20.5]} 26. Rxd7
{[%clk 0:01:34.4]} 26... Re8 {[%clk 0:00:17.3]} 27. Rxa7 {[%clk 0:01:31.3]}
27... h5 {[%clk 0:00:15.4]} 28. Bd5 {[%clk 0:01:28.8]} 28... Bg7 {[%clk
0:00:13.6]} 29. Bf7 {[%clk 0:01:25.5]} 29... Rd8 {[%clk 0:00:11.9]} 30. Bxg6
{[%clk 0:01:21.9]} 30... Nc6 {[%clk 0:00:12.3]} 31. Rc7 {[%clk 0:01:17.8]} 31...
Nb4 {[%clk 0:00:10.8]} 32. Bxf5 {[%clk 0:01:12.4]} 32... Nxa2 {[%clk 0:00:09.4]}
33. Ba3 {[%clk 0:01:06.1]} 33... Nc3 {[%clk 0:00:09.1]} 34. Be7 {[%clk
0:01:03.4]} 34... Re8 {[%clk 0:00:07.3]} 35. Bg6 {[%clk 0:00:58.3]} 35... Ra8
{[%clk 0:00:06.1]} 36. Rd7 {[%clk 0:00:57.2]} 36... Ne2+ {[%clk 0:00:05.8]} 37.
Kg2 {[%clk 0:00:56.4]} 37... Nd4 {[%clk 0:00:06.3]} 38. Bd8 {[%clk 0:00:54.7]}
38... Nxb3 {[%clk 0:00:03.5]} 39. Bxb6 {[%clk 0:00:52]} 39... Rf8 {[%clk
0:00:01.6]} 40. Rd8 {[%clk 0:00:50.6]} 40... Rxd8 {[%clk 0:00:01.3]} 41. Bxd8
{[%clk 0:00:51.2]} 1-0